[Event "Titled Tuesday Blitz July 11 Early 2023"]
[White "Narayanan, Srinath"]
[Black "Kumsiashvili, Nikoloz"]
[WhiteFideId "5018420"]
[BlackFideId "13600621"]
[WhiteElo "2921"]
[BlackElo "2721"]
[Result "0-1"]
[Round "6"]
[TimeControl "180+2"]
[Date "2023.07.11"]
[WhiteClock "0:00:48"]
[BlackClock "0:00:22"]
[Board "18"]

1. Nf3 {[%clk 0:03:00]}  Nf6 {[%clk 0:02:57]} 2. c4 {[%clk 0:03:00]}  g6 {[%clk 0:02:55]} 3. g3 {[%clk 0:02:59]}  Bg7 {[%clk 0:02:54]} 4. Bg2 {[%clk 0:03:00]}  O-O {[%clk 0:02:55]} 5. d4 {[%clk 0:02:59]}  c5 {[%clk 0:02:54]} 6. O-O {[%clk 0:02:56]}  cxd4 {[%clk 0:02:53]} 7. Nxd4 {[%clk 0:02:56]}  Nc6 {[%clk 0:02:53]} 8. Nc3 {[%clk 0:02:56]}  Nxd4 {[%clk 0:02:53]} 9. Qxd4 {[%clk 0:02:55]}  d6 {[%clk 0:02:53]} 10. Qd3 {[%clk 0:02:55]}  Qc7 {[%clk 0:02:45]} 11. Bf4 {[%clk 0:02:51]}  Be6 {[%clk 0:02:42]} 12. b3 {[%clk 0:02:50]}  Qc8 {[%clk 0:02:42]} 13. Rfd1 {[%clk 0:02:40]}  Bf5 {[%clk 0:02:35]} 14. Qd2 {[%clk 0:02:38]}  Bh3 {[%clk 0:02:29]} 15. Bh1 {[%clk 0:02:38]}  Rd8 {[%clk 0:02:27]} 16. Rac1 {[%clk 0:02:35]}  Qc5 {[%clk 0:02:08]} 17. Nd5 {[%clk 0:02:15]}  Nxd5 {[%clk 0:02:02]} 18. Qxd5 {[%clk 0:02:12]}  Qxd5 {[%clk 0:01:43]} 19. Bxd5 {[%clk 0:02:13]}  Rd7 {[%clk 0:01:03]} 20. f3 {[%clk 0:02:04]}  Be6 {[%clk 0:01:00]} 21. c5 {[%clk 0:01:31]}  dxc5 {[%clk 0:00:41]} 22. Bxe6 {[%clk 0:01:31]}  Rxd1+ {[%clk 0:00:41]} 23. Rxd1 {[%clk 0:01:32]}  fxe6 {[%clk 0:00:42]} 24. Rd7 {[%clk 0:01:33]}  Kf7 {[%clk 0:00:40]} 25. Bd6 {[%clk 0:01:07]}  Bf6 {[%clk 0:00:24]} 26. Rxb7 {[%clk 0:00:59]}  Rc8 {[%clk 0:00:20]} 27. Rxa7 {[%clk 0:00:56]}  c4 {[%clk 0:00:20]} 28. bxc4 {[%clk 0:00:55]}  Bd4+ {[%clk 0:00:20]} 29. Kg2 {[%clk 0:00:53]}  Bxa7 {[%clk 0:00:21]} 30. Be5 {[%clk 0:00:53]}  Rxc4 {[%clk 0:00:20]} 31. a3 {[%clk 0:00:53]}  Ra4 {[%clk 0:00:20]} 32. Bb2 {[%clk 0:00:52]}  Bc5 {[%clk 0:00:20]} 33. f4 {[%clk 0:00:52]}  Bxa3 {[%clk 0:00:21]} 34. Be5 {[%clk 0:00:53]}  Bd6 {[%clk 0:00:21]} 35. Bc3 {[%clk 0:00:52]}  Rc4 {[%clk 0:00:21]} 36. Be1 {[%clk 0:00:52]}  e5 {[%clk 0:00:21]} 37. e3 {[%clk 0:00:52]}  e4 {[%clk 0:00:21]} 38. Kh3 {[%clk 0:00:51]}  Rc2 {[%clk 0:00:21]} 39. g4 {[%clk 0:00:51]}  Re2 {[%clk 0:00:21]} 40. Bg3 {[%clk 0:00:51]}  Rxe3 {[%clk 0:00:22]} 41. Kg2 {[%clk 0:00:51]}  Rxg3+ {[%clk 0:00:21]} 42. hxg3 {[%clk 0:00:51]}  g5 {[%clk 0:00:22]} 43. fxg5 {[%clk 0:00:49]}  Kg6 {[%clk 0:00:21]} 44. Kf2 {[%clk 0:00:48]}  Kxg5 {[%clk 0:00:20]} 45. Ke3 {[%clk 0:00:49]}  Kxg4 {[%clk 0:00:21]} 46. Kxe4 {[%clk 0:00:49]}  Kxg3 {[%clk 0:00:21]} 47. Ke3 {[%clk 0:00:49]}  h5 {[%clk 0:00:22]} 48. Ke2 {[%clk 0:00:48]}  Kg2 {[%clk 0:00:22]} 0-1


[Site "https://www.chess.com"]

[Event "Titled Tuesday Blitz July 11 Early 2023"]
[White "De La Villa Garcia, Jesus Maria"]
[Black "Gholami Orimi, Mahdi"]
[WhiteFideId "2200040"]
[BlackFideId "12558486"]
[WhiteElo "2709"]
[BlackElo "2912"]
[Result "1-0"]
[Round "6"]
[TimeControl "180+2"]
[Date "2023.07.11"]
[WhiteClock "0:00:03"]
[BlackClock "0:00:04"]
[Board "19"]

1. d4 {[%clk 0:02:55]}  Nf6 {[%clk 0:03:00]} 2. Bg5 {[%clk 0:02:55]}  c5 {[%clk 0:02:59]} 3. d5 {[%clk 0:02:49]}  Qb6 {[%clk 0:02:56]} 4. Nc3 {[%clk 0:02:49]}  Qxb2 {[%clk 0:02:49]} 5. Bd2 {[%clk 0:02:49]}  Qb6 {[%clk 0:02:49]} 6. e4 {[%clk 0:02:49]}  d6 {[%clk 0:02:50]} 7. f4 {[%clk 0:02:50]}  Bg4 {[%clk 0:02:44]} 8. Nf3 {[%clk 0:02:47]}  a6 {[%clk 0:02:36]} 9. e5 {[%clk 0:02:39]}  Nfd7 {[%clk 0:02:31]} 10. Be2 {[%clk 0:02:11]}  Bxf3 {[%clk 0:02:28]} 11. Bxf3 {[%clk 0:02:12]}  dxe5 {[%clk 0:02:28]} 12. Rb1 {[%clk 0:02:12]}  Qd6 {[%clk 0:02:21]} 13. Ne4 {[%clk 0:01:59]}  Qc7 {[%clk 0:02:19]} 14. d6 {[%clk 0:01:57]}  exd6 {[%clk 0:02:19]} 15. Rxb7 {[%clk 0:01:54]}  Qd8 {[%clk 0:02:06]} 16. Bc3 {[%clk 0:01:39]}  Nb6 {[%clk 0:01:29]} 17. fxe5 {[%clk 0:01:30]}  d5 {[%clk 0:01:29]} 18. Ba5 {[%clk 0:00:39]}  N8d7 {[%clk 0:01:28]} 19. Nc3 {[%clk 0:00:38]}  Qh4+ {[%clk 0:00:50]} 20. g3 {[%clk 0:00:35]}  Qg5 {[%clk 0:00:23]} 21. Nxd5 {[%clk 0:00:35]}  Nxd5 {[%clk 0:00:23]} 22. Rxd7 {[%clk 0:00:15]}  Qxe5+ {[%clk 0:00:12]} 23. Kf1 {[%clk 0:00:16]}  Ne3+ {[%clk 0:00:12]} 24. Kf2 {[%clk 0:00:14]}  Nxd1+ {[%clk 0:00:12]} 25. Rdxd1 {[%clk 0:00:15]}  Be7 {[%clk 0:00:10]} 26. Bc6+ {[%clk 0:00:07]}  Kf8 {[%clk 0:00:10]} 27. Bxa8 {[%clk 0:00:08]}  Qf5+ {[%clk 0:00:09]} 28. Bf3 {[%clk 0:00:07]}  g6 {[%clk 0:00:08]} 29. Rhe1 {[%clk 0:00:06]}  Bf6 {[%clk 0:00:08]} 30. Re2 {[%clk 0:00:03]}  Kg7 {[%clk 0:00:08]} 31. Rd5 {[%clk 0:00:04]}  Qc8 {[%clk 0:00:08]} 32. Kg2 {[%clk 0:00:04]}  h5 {[%clk 0:00:08]} 33. h4 {[%clk 0:00:04]}  Re8 {[%clk 0:00:07]} 34. Red2 {[%clk 0:00:04]}  Qb8 {[%clk 0:00:07]} 35. Rd7 {[%clk 0:00:03]}  Re3 {[%clk 0:00:05]} 36. Bc7 {[%clk 0:00:01]}  Qb4 {[%clk 0:00:04]} 37. Bf4 {[%clk 0:00:02]}  Ra3 {[%clk 0:00:04]} 38. Bd5 {[%clk 0:00:02]}  Bd4 {[%clk 0:00:03]} 39. Rxf7+ {[%clk 0:00:02]}  Kh8 {[%clk 0:00:04]} 40. Rf8+ {[%clk 0:00:02]}  Kg7 {[%clk 0:00:04]} 41. Rf7+ {[%clk 0:00:03]}  Kh8 {[%clk 0:00:04]} 42. Re2 {[%clk 0:00:03]}  Qb5 {[%clk 0:00:03]} 43. Rf8+ {[%clk 0:00:02]}  Kg7 {[%clk 0:00:03]} 44. Rg8+ {[%clk 0:00:02]}  Kf6 {[%clk 0:00:02]} 45. Re6+ {[%clk 0:00:03]}  Kf7 {[%clk 0:00:02]} 46. Ree8+ {[%clk 0:00:02]}  Kf6 {[%clk 0:00:03]} 47. Rgf8+ {[%clk 0:00:03]}  Kg7 {[%clk 0:00:03]} 48. Rg8+ {[%clk 0:00:02]}  Kf6 {[%clk 0:00:03]} 49. Bg5+ {[%clk 0:00:02]}  Kf5 {[%clk 0:00:04]} 50. Rgf8+ {[%clk 0:00:02]}  Bf6 {[%clk 0:00:03]} 51. Rxf6+ {[%clk 0:00:02]}  Kg4 {[%clk 0:00:04]} 52. Rf4# {[%clk 0:00:03]} 1-0


[Site "https://www.chess.com"]

[Event "Titled Tuesday Blitz July 11 Early 2023"]
[White "Matinian, Nikita"]
[Black "Gordievsky, Dmitry"]
[WhiteFideId "24129100"]
[BlackFideId "24112798"]
[WhiteElo "2708"]
[BlackElo "2903"]
[Result "0-1"]
[Round "6"]
[TimeControl "180+2"]
[Date "2023.07.11"]
[WhiteClock "0:00:00"]
[BlackClock "0:00:13"]
[Board "20"]

1. e4 {[%clk 0:03:00]}  c6 {[%clk 0:02:59]} 2. d4 {[%clk 0:03:00]}  d5 {[%clk 0:03:00]} 3. e5 {[%clk 0:03:01]}  Bf5 {[%clk 0:03:00]} 4. Nf3 {[%clk 0:03:02]}  e6 {[%clk 0:03:00]} 5. Be2 {[%clk 0:03:03]}  Nd7 {[%clk 0:03:00]} 6. O-O {[%clk 0:03:02]}  h6 {[%clk 0:03:01]} 7. Nbd2 {[%clk 0:03:02]}  Ne7 {[%clk 0:03:01]} 8. Nb3 {[%clk 0:03:03]}  a5 {[%clk 0:03:01]} 9. a4 {[%clk 0:03:02]}  g5 {[%clk 0:02:59]} 10. Ne1 {[%clk 0:03:02]}  Bg7 {[%clk 0:02:57]} 11. f4 {[%clk 0:03:01]}  Qc7 {[%clk 0:02:38]} 12. fxg5 {[%clk 0:02:57]}  hxg5 {[%clk 0:02:38]} 13. Bxg5 {[%clk 0:02:57]}  f6 {[%clk 0:02:38]} 14. Bf4 {[%clk 0:02:52]}  fxe5 {[%clk 0:02:36]} 15. Bg3 {[%clk 0:02:52]}  c5 {[%clk 0:02:26]} 16. Bb5 {[%clk 0:02:40]}  cxd4 {[%clk 0:02:20]} 17. Qe2 {[%clk 0:02:08]}  O-O-O {[%clk 0:01:34]} 18. Nd3 {[%clk 0:02:07]}  Nc6 {[%clk 0:01:21]} 19. Kh1 {[%clk 0:01:48]}  Rh7 {[%clk 0:00:57]} 20. Bxc6 {[%clk 0:01:47]}  Qxc6 {[%clk 0:00:51]} 21. Nxe5 {[%clk 0:01:33]}  Qc7 {[%clk 0:00:47]} 22. Rae1 {[%clk 0:01:20]}  Rdh8 {[%clk 0:00:47]} 23. Nxd4 {[%clk 0:01:11]}  Rxh2+ {[%clk 0:00:33]} 24. Kg1 {[%clk 0:00:50]}  Rh1+ {[%clk 0:00:33]} 25. Kf2 {[%clk 0:00:51]}  Rxf1+ {[%clk 0:00:34]} 26. Kxf1 {[%clk 0:00:50]}  Rh1+ {[%clk 0:00:34]} 27. Kf2 {[%clk 0:00:49]}  Rxe1 {[%clk 0:00:35]} 28. Qxe1 {[%clk 0:00:44]}  Bxe5 {[%clk 0:00:35]} 29. Bxe5 {[%clk 0:00:43]}  Qxe5 {[%clk 0:00:35]} 30. Qc3+ {[%clk 0:00:29]}  Kb8 {[%clk 0:00:36]} 31. b3 {[%clk 0:00:28]}  Qc7 {[%clk 0:00:31]} 32. Qxc7+ {[%clk 0:00:15]}  Kxc7 {[%clk 0:00:31]} 33. Ke3 {[%clk 0:00:16]}  Kd6 {[%clk 0:00:26]} 34. c3 {[%clk 0:00:14]}  Be4 {[%clk 0:00:25]} 35. g4 {[%clk 0:00:13]}  Nf6 {[%clk 0:00:21]} 36. g5 {[%clk 0:00:13]}  Nh7 {[%clk 0:00:22]} 37. Nb5+ {[%clk 0:00:12]}  Ke7 {[%clk 0:00:20]} 38. Kf4 {[%clk 0:00:11]}  Nf8 {[%clk 0:00:17]} 39. Ke5 {[%clk 0:00:08]}  Nd7+ {[%clk 0:00:13]} 40. Kd4 {[%clk 0:00:09]}  e5+ {[%clk 0:00:14]} 41. Ke3 {[%clk 0:00:09]}  Bc2 {[%clk 0:00:14]} 42. c4 {[%clk 0:00:05]}  Bxb3 {[%clk 0:00:13]} 43. cxd5 {[%clk 0:00:05]}  Bxd5 {[%clk 0:00:13]} 44. Nc3 {[%clk 0:00:05]}  Bc6 {[%clk 0:00:13]} 45. Ne4 {[%clk 0:00:02]}  Bxe4 {[%clk 0:00:12]} 46. Kxe4 {[%clk 0:00:00]}  Ke6 {[%clk 0:00:13]} 0-1


[Site "https://www.chess.com"]

[Event "Titled Tuesday Blitz July 11 Early 2023"]
[White "djokovic74"]
[Black "Antipov, Mikhail Al."]
[BlackFideId "4107012"]
[WhiteElo "2707"]
[BlackElo "2899"]
[Result "0-1"]
[Round "6"]
[TimeControl "180+2"]
[Date "2023.07.11"]
[WhiteClock "0:00:00"]
[BlackClock "0:00:05"]
[Board "21"]

1. e4 {[%clk 0:03:00]}  c5 {[%clk 0:02:56]} 2. Nf3 {[%clk 0:03:01]}  d6 {[%clk 0:02:57]} 3. d4 {[%clk 0:03:01]}  cxd4 {[%clk 0:02:57]} 4. Nxd4 {[%clk 0:03:02]}  Nf6 {[%clk 0:02:58]} 5. Nc3 {[%clk 0:03:03]}  a6 {[%clk 0:02:58]} 6. Be2 {[%clk 0:03:03]}  e6 {[%clk 0:02:57]} 7. Be3 {[%clk 0:03:03]}  Be7 {[%clk 0:02:57]} 8. g4 {[%clk 0:03:03]}  Nfd7 {[%clk 0:02:53]} 9. Qd2 {[%clk 0:03:00]}  b5 {[%clk 0:02:51]} 10. a3 {[%clk 0:02:49]}  Bb7 {[%clk 0:02:51]} 11. O-O-O {[%clk 0:02:46]}  Nc5 {[%clk 0:02:45]} 12. f3 {[%clk 0:02:41]}  Nbd7 {[%clk 0:02:45]} 13. g5 {[%clk 0:02:36]}  Rc8 {[%clk 0:02:41]} 14. h4 {[%clk 0:02:36]}  Nb6 {[%clk 0:02:40]} 15. h5 {[%clk 0:02:32]}  O-O {[%clk 0:02:07]} 16. Rdg1 {[%clk 0:02:19]}  Qc7 {[%clk 0:01:31]} 17. g6 {[%clk 0:02:12]}  Bf6 {[%clk 0:01:30]} 18. Bf1 {[%clk 0:01:33]}  d5 {[%clk 0:01:16]} 19. Bg5 {[%clk 0:01:16]}  Bxd4 {[%clk 0:01:03]} 20. Qxd4 {[%clk 0:01:16]}  e5 {[%clk 0:01:04]} 21. Qf2 {[%clk 0:01:13]}  d4 {[%clk 0:01:04]} 22. gxh7+ {[%clk 0:00:35]}  Kxh7 {[%clk 0:01:05]} 23. Bh3 {[%clk 0:00:24]}  f5 {[%clk 0:01:01]} 24. Bxf5+ {[%clk 0:00:13]}  Rxf5 {[%clk 0:01:00]} 25. exf5 {[%clk 0:00:14]}  dxc3 {[%clk 0:01:01]} 26. h6 {[%clk 0:00:11]}  Kg8 {[%clk 0:00:13]} 27. hxg7 {[%clk 0:00:10]}  Bd5 {[%clk 0:00:12]} 28. Rh8+ {[%clk 0:00:09]}  Kf7 {[%clk 0:00:12]} 29. Rxc8 {[%clk 0:00:05]}  Qxc8 {[%clk 0:00:13]} 30. Be3 {[%clk 0:00:03]}  cxb2+ {[%clk 0:00:09]} 31. Kb1 {[%clk 0:00:03]}  Nca4 {[%clk 0:00:07]} 32. Bd2 {[%clk 0:00:00]}  Nc4 {[%clk 0:00:05]} 0-1


[Site "https://www.chess.com"]

[Event "Titled Tuesday Blitz July 11 Early 2023"]
[White "Zhigalko, Sergei"]
[Black "NikaVolkov"]
[WhiteFideId "13502956"]
[WhiteElo "2886"]
[BlackElo "2697"]
[Result "0-1"]
[Round "6"]
[TimeControl "180+2"]
[Date "2023.07.11"]
[WhiteClock "0:00:00"]
[BlackClock "0:00:03"]
[Board "22"]

1. e4 {[%clk 0:03:00]}  c5 {[%clk 0:03:00]} 2. Nf3 {[%clk 0:02:59]}  e6 {[%clk 0:03:00]} 3. c3 {[%clk 0:03:00]}  d5 {[%clk 0:02:59]} 4. e5 {[%clk 0:02:59]}  Nc6 {[%clk 0:02:59]} 5. d4 {[%clk 0:02:59]}  Nge7 {[%clk 0:03:00]} 6. Na3 {[%clk 0:02:59]}  Nf5 {[%clk 0:02:59]} 7. Nc2 {[%clk 0:02:59]}  h5 {[%clk 0:02:57]} 8. h4 {[%clk 0:02:56]}  Qb6 {[%clk 0:02:57]} 9. g3 {[%clk 0:02:55]}  cxd4 {[%clk 0:02:51]} 10. cxd4 {[%clk 0:02:56]}  Bd7 {[%clk 0:02:47]} 11. Bh3 {[%clk 0:02:51]}  Rc8 {[%clk 0:02:41]} 12. O-O {[%clk 0:02:47]}  g6 {[%clk 0:02:40]} 13. Rb1 {[%clk 0:02:42]}  Nb4 {[%clk 0:02:30]} 14. Nxb4 {[%clk 0:02:34]}  Bxb4 {[%clk 0:02:30]} 15. Bxf5 {[%clk 0:02:26]}  exf5 {[%clk 0:02:22]} 16. Bd2 {[%clk 0:02:26]}  Be7 {[%clk 0:02:06]} 17. Bg5 {[%clk 0:02:26]}  Bxg5 {[%clk 0:02:01]} 18. Nxg5 {[%clk 0:02:26]}  O-O {[%clk 0:02:02]} 19. Qd2 {[%clk 0:02:23]}  Rc4 {[%clk 0:02:00]} 20. Nf3 {[%clk 0:02:13]}  Kg7 {[%clk 0:01:56]} 21. b3 {[%clk 0:02:12]}  Rc7 {[%clk 0:01:52]} 22. Rfc1 {[%clk 0:02:00]}  Rfc8 {[%clk 0:01:51]} 23. Qg5 {[%clk 0:01:49]}  Rc2 {[%clk 0:01:09]} 24. Rxc2 {[%clk 0:01:19]}  Rxc2 {[%clk 0:01:09]} 25. Rc1 {[%clk 0:01:19]}  Rxa2 {[%clk 0:00:18]} 26. Rc5 {[%clk 0:00:24]}  Ra1+ {[%clk 0:00:13]} 27. Kg2 {[%clk 0:00:15]}  Qa6 {[%clk 0:00:11]} 28. Nd2 {[%clk 0:00:12]}  Rd1 {[%clk 0:00:08]} 29. Rc7 {[%clk 0:00:12]}  Qe6 {[%clk 0:00:02]} 30. Rxb7 {[%clk 0:00:10]}  f4 {[%clk 0:00:02]} 31. Qf6+ {[%clk 0:00:02]}  Qxf6 {[%clk 0:00:03]} 32. exf6+ {[%clk 0:00:03]}  Kxf6 {[%clk 0:00:03]} 33. Nf3 {[%clk 0:00:02]}  Bf5 {[%clk 0:00:03]} 34. gxf4 {[%clk 0:00:00]}  Be4 {[%clk 0:00:03]} 0-1


[Site "https://www.chess.com"]

[Event "Titled Tuesday Blitz July 11 Early 2023"]
[White "Turski, Bartlomiej"]
[Black "Shuvalova, Polina"]
[WhiteFideId "21810567"]
[BlackFideId "24171760"]
[WhiteElo "2880"]
[BlackElo "2694"]
[Result "1-0"]
[Round "6"]
[TimeControl "180+2"]
[Date "2023.07.11"]
[WhiteClock "0:00:50"]
[BlackClock "0:00:05"]
[Board "23"]

1. e4 {[%clk 0:02:57]}  c6 {[%clk 0:02:59]} 2. d4 {[%clk 0:02:54]}  d5 {[%clk 0:03:00]} 3. Nc3 {[%clk 0:02:53]}  dxe4 {[%clk 0:03:00]} 4. Nxe4 {[%clk 0:02:54]}  Nf6 {[%clk 0:03:01]} 5. Nxf6+ {[%clk 0:02:52]}  exf6 {[%clk 0:03:02]} 6. c3 {[%clk 0:02:46]}  Bd6 {[%clk 0:03:01]} 7. Bd3 {[%clk 0:02:46]}  O-O {[%clk 0:03:01]} 8. Qc2 {[%clk 0:02:45]}  Re8+ {[%clk 0:03:01]} 9. Ne2 {[%clk 0:02:45]}  h5 {[%clk 0:03:02]} 10. O-O {[%clk 0:02:45]}  h4 {[%clk 0:02:58]} 11. Nf4 {[%clk 0:02:25]}  Nd7 {[%clk 0:02:52]} 12. g3 {[%clk 0:02:22]}  Qc7 {[%clk 0:02:46]} 13. Qd1 {[%clk 0:02:15]}  Nf8 {[%clk 0:02:42]} 14. Qh5 {[%clk 0:02:11]}  hxg3 {[%clk 0:02:13]} 15. hxg3 {[%clk 0:02:10]}  Qd7 {[%clk 0:01:34]} 16. f3 {[%clk 0:01:51]}  Bxf4 {[%clk 0:01:28]} 17. Bxf4 {[%clk 0:01:50]}  Ng6 {[%clk 0:01:28]} 18. Rae1 {[%clk 0:01:40]}  Qd8 {[%clk 0:00:43]} 19. Bxg6 {[%clk 0:01:36]}  fxg6 {[%clk 0:00:42]} 20. Qxg6 {[%clk 0:01:37]}  Rxe1 {[%clk 0:00:37]} 21. Rxe1 {[%clk 0:01:38]}  Bd7 {[%clk 0:00:37]} 22. Bh6 {[%clk 0:01:34]}  Qf8 {[%clk 0:00:35]} 23. Bxg7 {[%clk 0:01:35]}  Qf7 {[%clk 0:00:28]} 24. Qxf6 {[%clk 0:01:24]}  Qh5 {[%clk 0:00:17]} 25. Bh6 {[%clk 0:01:15]}  Qf7 {[%clk 0:00:17]} 26. Qxf7+ {[%clk 0:01:11]}  Kxf7 {[%clk 0:00:17]} 27. Bg5 {[%clk 0:01:12]}  Be6 {[%clk 0:00:18]} 28. Kf2 {[%clk 0:01:12]}  Rg8 {[%clk 0:00:18]} 29. Bh4 {[%clk 0:01:12]}  a5 {[%clk 0:00:15]} 30. b3 {[%clk 0:01:12]}  b5 {[%clk 0:00:15]} 31. Re5 {[%clk 0:01:12]}  Ra8 {[%clk 0:00:15]} 32. f4 {[%clk 0:01:13]}  a4 {[%clk 0:00:15]} 33. f5 {[%clk 0:01:13]}  Bd5 {[%clk 0:00:14]} 34. Re7+ {[%clk 0:01:13]}  Kf8 {[%clk 0:00:14]} 35. g4 {[%clk 0:00:58]}  axb3 {[%clk 0:00:14]} 36. axb3 {[%clk 0:00:58]}  Ra2+ {[%clk 0:00:13]} 37. Kg3 {[%clk 0:00:55]}  Rg2+ {[%clk 0:00:13]} 38. Kf4 {[%clk 0:00:55]}  Rh2 {[%clk 0:00:10]} 39. Bg5 {[%clk 0:00:53]}  Rf2+ {[%clk 0:00:09]} 40. Ke5 {[%clk 0:00:53]}  Re2+ {[%clk 0:00:08]} 41. Kd6 {[%clk 0:00:53]}  Rxe7 {[%clk 0:00:08]} 42. Bxe7+ {[%clk 0:00:54]}  Kf7 {[%clk 0:00:09]} 43. g5 {[%clk 0:00:49]}  Bxb3 {[%clk 0:00:07]} 44. g6+ {[%clk 0:00:49]}  Kg7 {[%clk 0:00:07]} 45. Kxc6 {[%clk 0:00:49]}  Bc2 {[%clk 0:00:07]} 46. f6+ {[%clk 0:00:49]}  Kxg6 {[%clk 0:00:05]} 47. Kxb5 {[%clk 0:00:50]} 1-0


[Site "https://www.chess.com"]

[Event "Titled Tuesday Blitz July 11 Early 2023"]
[White "Schmakel, Sam"]
[Black "Kev4444444444"]
[WhiteFideId "2039311"]
[WhiteElo "2770"]
[BlackElo "2234"]
[Result "1-0"]
[Round "6"]
[TimeControl "180+2"]
[Date "2023.07.11"]
[WhiteClock "0:00:25"]
[BlackClock "0:00:26"]
[Board "30"]

1. c4 {[%clk 0:03:00]}  e5 {[%clk 0:02:59]} 2. Nc3 {[%clk 0:02:58]}  Nf6 {[%clk 0:02:58]} 3. Nf3 {[%clk 0:02:58]}  Nc6 {[%clk 0:02:58]} 4. d3 {[%clk 0:02:47]}  a6 {[%clk 0:02:42]} 5. g3 {[%clk 0:02:43]}  Bc5 {[%clk 0:02:36]} 6. Bg2 {[%clk 0:02:39]}  d6 {[%clk 0:02:35]} 7. O-O {[%clk 0:02:38]}  h6 {[%clk 0:02:35]} 8. Rb1 {[%clk 0:02:31]}  O-O {[%clk 0:02:34]} 9. a3 {[%clk 0:02:13]}  Be6 {[%clk 0:02:31]} 10. b4 {[%clk 0:02:09]}  Ba7 {[%clk 0:02:31]} 11. b5 {[%clk 0:02:02]}  axb5 {[%clk 0:02:19]} 12. Nxb5 {[%clk 0:02:03]}  Bb6 {[%clk 0:02:07]} 13. Bb2 {[%clk 0:02:02]}  Ne7 {[%clk 0:01:57]} 14. Qc2 {[%clk 0:01:55]}  c6 {[%clk 0:01:56]} 15. Nc3 {[%clk 0:01:55]}  Nd7 {[%clk 0:01:49]} 16. a4 {[%clk 0:01:45]}  f5 {[%clk 0:01:47]} 17. Ba3 {[%clk 0:01:35]}  Bc5 {[%clk 0:01:46]} 18. Bc1 {[%clk 0:01:27]}  Qc7 {[%clk 0:01:43]} 19. Rd1 {[%clk 0:01:25]}  Ba7 {[%clk 0:01:40]} 20. Bd2 {[%clk 0:00:56]}  Nf6 {[%clk 0:01:40]} 21. Rb2 {[%clk 0:00:52]}  Ng4 {[%clk 0:01:40]} 22. e3 {[%clk 0:00:52]}  e4 {[%clk 0:01:30]} 23. dxe4 {[%clk 0:00:50]}  Bxc4 {[%clk 0:01:30]} 24. exf5 {[%clk 0:00:44]}  Nxf5 {[%clk 0:01:26]} 25. Rdb1 {[%clk 0:00:40]}  Rab8 {[%clk 0:01:15]} 26. h3 {[%clk 0:00:41]}  Ne5 {[%clk 0:01:04]} 27. Nxe5 {[%clk 0:00:39]}  dxe5 {[%clk 0:01:03]} 28. Ne4 {[%clk 0:00:38]}  Bd5 {[%clk 0:01:01]} 29. Nf6+ {[%clk 0:00:36]}  Rxf6 {[%clk 0:00:56]} 30. Bxd5+ {[%clk 0:00:37]}  Kh8 {[%clk 0:00:57]} 31. Be4 {[%clk 0:00:37]}  Nd6 {[%clk 0:00:55]} 32. Bg2 {[%clk 0:00:37]}  Rbf8 {[%clk 0:00:54]} 33. Be1 {[%clk 0:00:36]}  Qd7 {[%clk 0:00:46]} 34. Rd1 {[%clk 0:00:33]}  Qc7 {[%clk 0:00:42]} 35. Qb3 {[%clk 0:00:32]}  Bc5 {[%clk 0:00:40]} 36. Bc3 {[%clk 0:00:27]}  R8f7 {[%clk 0:00:33]} 37. Bxe5 {[%clk 0:00:26]}  Re6 {[%clk 0:00:26]} 38. Qxe6 {[%clk 0:00:25]} 1-0


[Site "https://www.chess.com"]